{"text_format":"1","workbook":"xlsx","n_sheets":8,"sheets":["SOLICITUD","LISTA DE PRECIOS","CATEGORIA","Requisitos","RAMAS","Hoja1","CONDICIONES DEL SERVICIO","COTIZACION"],"not_rendered":{"charts":0,"images":6,"macros":0,"external_links":0,"defined_names":25,"comments":0,"pivot_tables":0},"unopened":[],"bounds":{"document_bytes":16777216,"sheet_cells":100000,"rows_first":2000,"rows_last":500,"rows_between":2000,"halvings":0,"cell_chars":16384,"cell_head_chars":4096},"cells_cut":0,"cells_raw":0,"read":"whole","date_system":"1900"}

{"sheet":"SOLICITUD","index":0,"n_rows":38,"n_cols":12,"rows_kept":38,"cut":false,"hidden":false,"merged":[[36,2,36,10],[0,1,4,5],[39,2,39,9],[40,2,40,9],[39,10,39,11],[37,2,38,10],[13,3,13,5],[7,3,7,8],[8,3,8,8],[5,2,5,8],[6,3,6,8],[10,2,10,9],[13,7,13,9],[1,6,1,7],[2,6,3,6],[2,7,3,7],[11,3,11,6],[9,1,9,7],[19,2,19,11],[21,2,21,11],[42,2,42,10],[12,8,12,9],[11,8,11,9],[23,2,23,11],[25,2,25,11],[27,2,27,11],[29,2,29,11],[31,2,31,11],[33,2,33,11],[35,2,35,11],[12,3,12,6],[17,2,17,11]]}
[null,"                 "]
[null,null,null,null,null,null,"SOLICITUD DE SERVICIO"]
[null,null,null,null,null,null,"FECHA",{"$f":"TODAY()","v":"2023-05-25"}]
[]
[]
[null,null,"DATOS PARA EL REPORTE DE ENSAYOS"]
[null,null,"NOMBRE DE LA EMPRESA:"]
[null,null,"DOMICILIO FISCAL:"]
[null,null,"REPRESENTANTE LEGAL:"]
[]
[null,null,"DATOS DE FACTURACIÒN"]
[null,null,"NOMBRE DE LA EMPRESA:","Leonardo Salazar ",null,null,null,"TELEFONO:","81 83626558"]
[null,null,"DOMICILIO FISCAL:",null,null,null,null,"CORREO ELECTRONICO:"]
[null,null,"REPRESENTANTE LEGAL:",null,null,null,"RFC:"]
[]
[null,"NO","ITEM","MARCA","MODELO","RAMA","PARTICULARES Y NORMAS","PAIS DE ORIGEN","FABRICANTE","CARACTERISTICAS ELECTRICAS","CATEGORIA","FECHA DE VISITA DE SEGUIMIENTO"]
[null,1]
[null,"INCLUYE:"]
[null,2]
[null,"INCLUYE:"]
[null,3]
[null,"INCLUYE:"]
[null,4]
[null,"INCLUYE:"]
[null,5]
[null,"INCLUYE:"]
[null,6]
[null,"INCLUYE:"]
[null,7]
[null,"INCLUYE:"]
[null,8]
[null,"INCLUYE:"]
[null,9]
[null,"INCLUYE:"]
[null,10]
[null,"INCLUYE:"]
[]
[null,null,"**NOTA: LA PRESENTE SOLICITUD NECESITA LLEVAR LAS CONDICIONES DE SERVICIO CON NOMBRE, FECHA Y FIRMA DE ACEPTACIÓN DEL SERVICIO.**                                                                                                **REVISAR LOS REQUISITOS PARA INGRESO DE SOLICITUDES**"]

{"sheet":"LISTA DE PRECIOS","index":1,"n_rows":0,"n_cols":0,"rows_kept":0,"cut":false,"hidden":true,"merged":[]}

{"sheet":"CATEGORIA","index":2,"n_rows":7,"n_cols":1,"rows_kept":7,"cut":false,"hidden":true,"merged":[]}
["CATEGORIA"]
["--"]
["NUEVO "]
["USADO"]
["RECONSTRUIDO"]
["SEGUIMIENTO"]
["REACONDICIONADO"]

{"sheet":"Requisitos","index":3,"n_rows":66,"n_cols":1,"rows_kept":66,"cut":false,"hidden":false,"merged":[]}
["Para todas las normas:"]
["Instructivo y/o manuales de operación "]
["Especificaciones técnicas (pueden venir en el manual, instructivos, folletos o catalogos)"]
["Imagen de las especificaciones del eliminador de baterias (cuando sean separables) "]
[]
["Adicionalmente para la NOM-003-SCFI-2000:"]
["Diagrama eléctrico"]
["Manual"]
[]
["Adicionalmente para la NOM-016-SCFI-1993:"]
["Diagrama eléctrico"]
[]
["Adicionalmente para la NOM-019-SCFI-1998:"]
["Diagrama eléctrico"]
["Marcado"]
[]
["Adicionalmente para la NOM-058-SCFI-1999:"]
["Especificaciones de instalación"]
["Calibre, material y clase térmica de los conductores utilizados en el balastro."]
["Valor del capacitor, así como su tensión nominal."]
["Modelo de ignitores compatibles con el balastro."]
["Calibre y clase térmica de las puntas de conexión del balastro."]
["Clase térmica del sistema de aislamiento utilizado."]
["Copia de la etiqueta prototipo de todos y cada uno de los modelos que se desean certificar."]
[]
[]
["Adicionalmente para la NOM-133/1-SCFI-1999"]
["Tipo de andadera."]
["Cantidad de ruedas."]
["Materiales de la estructura, de las ruedas, de los accesorios y protectores de los resortes."]
["Fotografías de cada uno de los productos frontal, lateral, trasera, superior e inferior."]
["Mecanismo de enganche (cuando aplique)"]
["Mecanismo de ajuste (cuando aplique)."]
["Número de resortes (cuando aplique)"]
["Marca de los productos a certificarse"]
["Instructivo y leyendas precautorias"]
[]
["Adicionalmente para la NOM-133/2-SCFI-1999"]
["Tipo de carriola"]
["Cantidad de ruedas"]
["Materiales de la estructura, de las ruedas, de los accesorios y protectores de los resortes."]
["Fotografías de cada uno de los productos frontal, laterales, trasera, superior e inferior"]
["Mecanismo de seguridad"]
["Mecanismo de posiciones para respaldo"]
["Número de ocupantes"]
["Mecanismo de freno"]
["Ubicación del mecanismo de freno"]
["Número de resortes, así como material que lo protege (cuando aplique)."]
["Marca de los productos a certificar."]
["Instructivo y leyendas precautorias"]
[]
["Adicionalmente para la NOM-133/3-SCFI-1999"]
["Tipo de forma del corral o encierro"]
["Materiales de la estructura y de los accesorios"]
["Fotografías de cada uno de los productos frontal, laterales, trasera, superior e inferior."]
["Marca de los productos a certificar."]
["Sistema de enganche o candado."]
["Instructivo y leyendas precautorias"]
[]
["Adicionalmente para la NOM-001"]
["Etiquetado de la muestra"]
["Instructivo y leyendas precautorias"]
[]
[]
["empaque "]
["producto "]

{"sheet":"RAMAS","index":4,"n_rows":64,"n_cols":3,"rows_kept":64,"cut":false,"hidden":false,"merged":[[16,0,16,2],[1,0,1,2],[23,0,23,2],[59,0,59,2]]}
[]
["ELECTRONICA"]
[1,"NOM-016-SCFI-1993","“APARATOS ELECTRÓNICOS - APARATOS ELECTRÓNICOS DE USO EN OFICINA Y ALIMENTADOS POR DIFERENTES FUENTES DE ENERGÍA ELÉCTRICA- REQUISITOS DE SEGURIDAD Y MÉTODOS DE PRUEBA”."]
[2,"NOM-019-SCFI-1998","“SEGURIDAD DE EQUIPO DE PROCESAMIENTO DE DATOS”"]
[3,"NOM-048-SCFI-1997","“INSTRUMENTOS DE MEDICIÓN-RELOJES REGISTRADORES DE TIEMPO-ALIMENTADOS CON DIFERENTES FUENTES DE ENERGÍA”"]
[4,"NOM-058-SCFI-2017","ELECTROTECNIA-CONTROLADORES PARA MODULOS LED-REQUISITOS DE SEGURIDAD Y METODOS DE PRUEBA"]
[null,"NMX-I-J-202-NYCE-ANCE-2017","ELECTROTECNIA-CONTROLADORES PARA MODULOS LED-REQUISITOS DE SEGURIDAD Y METODOS DE PRUEBA"]
[null,"NMX-J-156-ANCE-2010","ILUMINACION-BALASTROS ELECTROMAGNETICOS PARA LAMAPRAS FLUORESCENTES-ESPECIFICACIONES"]
[null,"NMX-J-513-ANCE-2012","ILUMINACION-CONTROLADORES DE ALTA FRECUENCIA PARA LAMPARAS FLUORESCENTES-ESPECIFICACIONES"]
[null,"NMX-J-198-ANCE-2015","ILUMINACION-CONTROLADORES PARA LAMPARAS FLUORESCENTES-METODO DE PRUEBA"]
[5,"NMX-I-60065-NYCE-2015","EQUIPO ELECTRONICO-APARATOS DE AUDIO, VIDEO Y APARATOS ELECTRONICOS ANALOGOS-REQUISITOS DE SEGURIDAD"]
[6,"NMX-I-60335-2-82-NYCE2015","ELECTRONICA-EQUIPO, ELECTRONICA REQUISITOS PARTICULARES PARA MAQUINAS DE ENTRETENIMIENTO Y DE SERVICIO PERSONAL"]
[7,"NMX-I-163-NYCE-2016","EQUIPO ELECTRONICO-SISTEMAS ELECTRONICOS DE ENERGIA ININTERRUMPIDA (S.E.E.I)-REQUISITOS ENERALES, DESEMPEÑO Y DE SEGURIDAD"]
[8,"NMX-I-60950-1-NYCE-2015","EQUIPOS DE TECNOLOGIAS DE LA INFORMACION-SEGURIDAD-REQUISITOS GENERALES (FUENTES DE ALIMENTACION EXTERNA)"]
[9,"NMX-I-60950-1-NYCE-2015","EQUIPOS DE TECNOLOGIAS DE LA INFORMACION-SEGURIDAD-REQUISITOS GENERALES (MISCELÁNEOS O PRODUCTOS DIVERSOS)"]
[10,"NMX-I-102-NYCE-2007","ELECTRONICA-SEGURIDAD DE LOS JUGUETES ELECTRONICOS"]
["ENERGETICA"]
[11,"NOM-029-ENER-2017","“EFICIENCIA ENERGÉTICA DE FUENTES DE ALIMENTACIÓN EXTERNA. LÍMITES, MÉTODOS DE PRUEBA, MARCADO Y ETIQUETADO.”"]
[12,"NOM-032-ENER-2013","“LÍMITES MÁXIMOS DE POTENCIA ELÉCTRICA PARA EQUIPOS Y APARATOS QUE DEMANDAN ENERGÍA EN ESPERA. MÉTODO DE PRUEBA Y ETIQUETADO”"]
[13,"NOM-033-ENER-2019","EFICIENCIA ENERGÉTICA DE MOTORES DE CORRIENTE ALTERNA, ENFRIADOS CON AIRE, EN POTENCIA NOMINAL MAYOR O IGUAL QUE 1 W Y MENOR QUE 180 W. LÍMITES, MÉTODO DE PRUEBA Y MARCADO."]
[14,"CONSUMO ENERGETICO","----------------"]
[15,"INFORME TECNICO ","----------------"]
[16,"C381.1-08","“EFICIENCIA ENERGÉTICA DE FUENTES DE ALIMENTACIÓN EXTERNAS DE CA/CC Y CA/CA” (CONSUMO ENERGETICO)"]
["ELECTRICA"]
[17,"NMX-J-521/2-2-ANCE-2019","APARATOS ELECTRODOMÉSTICOS Y SIMILARES - SEGURIDAD - PARTE 2-2: REQUISITOS PARTICULARES PARA ASPIRADORAS Y APARATOS DE LIMPIEZA DE SUCCIÓN DE AGUA"]
[18,"NMX-J-521/2-3-ANCE-2013","APARATOS ELECTRODOMÉSTICOS Y SIMILARES - SEGURIDAD - PARTE 2-3:"]
[null,null,"REQUISITOS PARTICULARES PARA PLANCHAS ELÉCTRICAS"]
[19,"NMX-J-521/2-4-ANCE-2006"]
[20,"NMX-J-521/2-5-ANCE-2009"]
[21,"NMX-J-521/2-8-ANCE-2018","APARATOS ELECTRODOMÉSTICOS Y SIMILARES - SEGURIDAD - PARTE 2-8: REQUISITOS PARTICULARES PARA LAS MÁQUINAS ELECTRICAS DE AFEITAR, DE CORTAR EL PELO Y APARATOS SIMILARES"]
[22,"NMX-J-521-2-9-ANCE-2016","APARATOS ELECTRODOMÉSTICOS Y SIMILARES - SEGURIDAD - PARTE 2-9: REQUISITOS PARTICULARES PARA PARRILLAS, TOSTADORES, Y APARATOS PORTÁTILES DE COCIMIENTO SIMILARES"]
[23,"NMX-J-521/2-13-ANCE-2010","APARATOS ELECTRODOMÉSTICOS Y SIMILARES – SEGURIDAD-PARTE 2-13: REQUISITOS PARTICULARES PARA FREIDORAS, SARTENES PARA FREÍR Y APARATOS SIMILARES"]
[24,"NMX-J-521/2-14-ANCE-2020","APARATOS ELECTRODOMÉSTICOS Y SIMILARES – SEGURIDAD-PARTE 2-14:"]
[null,null,"REQUISITOS PARTICULARES PARA MÁQUINAS DE COCINA"]
[25,"NMX-J-521/2-15-ANCE-2013","APARATOS ELECTRODOMÉSTICOS Y SIMILARES – SEGURIDAD-PARTE 2-15: REQUISITOS PARTICULARES PARA APARATOS PARA CALENTAR LÍQUIDOS"]
[26,"NMX-J-521-2-23-ANCE-2016","APARATOS ELECTRODOMÉSTICOS Y SIMILARES – SEGURIDAD-PARTE 2-23: REQUISITOS PARTICULARES PARA APARATOS PARA EL CUIDADO DE LA PIEL O EL CABELLO"]
[27,"NMX-J-521/2-28-ANCE-2011","APARATOS ELECTRODOMÉSTICOS Y SIMILARES – SEGURIDAD-PARTE 2-28: REQUISITOS PARTICULARES PARA MÁQUINAS DE COSER"]
[28,"NMX-J-521/2-30-ANCE-2009","APARATOS ELECTRODOMÉSTICOS Y SIMILARES – SEGURIDAD-PARTE 2-30: REQUISITOS PARTICULARES PARA CALEFACTORES DE CUARTO"]
[29,"NMX-J-521/2-31-ANCE-2018","APARATOS ELECTRODOMÉSTICOS Y SIMILARES – SEGURIDAD-PARTE 2-31: REQUISITOS PARTICULARES PARA CAMPANAS DE COCINA"]
[30,"NMX-J-521-2-32-ANCE-2017","APARATOS ELECTRODOMÉSTICOS Y SIMILARES – SEGURIDAD-PARTE 2-32: REQUISITOS PARTICULARES PARA APARATOS PARA DAR MASAJE"]
[31,"NMX-J-521/2-45-ANCE-2008","APARATOS ELECTRODOMÉSTICOS Y SIMILARES – SEGURIDAD-PARTE 2-45: REQUISITOS PARTICULARES PARA HERRAMIENTAS PORTÁTILES DE CALENTAMIENTO Y SIMILARES"]
[32,"NMX-J-521/2-52-ANCE-2010","APARATOS ELECTRODOMÉSTICOS Y SIMILARES – SEGURIDAD-PARTE 2-52: REQUISITOS PARTICULARES PARA APARATOS DE HIGIENE BUCAL"]
[33,"NMX-J-521/2-54-ANCE-2005","APARATOS ELECTRODOMÉSTICOS Y SIMILARES – SEGURIDAD-PARTE 2-54: REQUISITOS PARTICULARES PARA LOS APARATOS DE LIMPIEZA DE SUPERFICIES PARA USO DOMESTICO QUE UTILIZAN LIQUIDOS O VAPOR"]
[34,"NMX-J-521/2-75-ANCE-2018","APARATOS ELECTRODOMÉSTICOS Y SIMILARES – SEGURIDAD-PARTE 2-75: REQUISITOS PARTICULARES PARA MAQUINAS EXPENDEDORAS COMERCIALES Y MAQUINAS DE VENTA"]
[35,"NMX-J-521/2-80-ANCE-2014","APARATOS ELECTRODOMÉSTICOS Y SIMILARES – SEGURIDAD-PARTE 2-80: REQUISITOS PARTICULARES PARA VENTILADORES"]
[36,"NMX-J-I-62115-ANCE-NYCE-2020","JUGUETES ELÉCTRICOS - SEGURIDAD"]
[37,"NMX-J-024-ANCE-2018","“ILUMINACION – PORTALAMPARAS ROSCADOS TIPO EDISON – ESPECIFICACIONES Y METODOS DE PRUEBA”"]
[38,"NMX-J-175/1-ANCE-2005","“JUGUETES ELECTRICOS-SEGURIDAD”"]
[39,"NMX-J-307-ANCE-2017","“LUMINARIOS DE USO GENERAL PARA INTERIORES Y EXTERIORES.”"]
[40,"NMX-J-508-ANCE-2018","“ARTEFACTOS ELECTRICOS – REQUISITOS DE SEGURIDAD – ESPECIFICACIONES Y METODOS DE PRUEBA”"]
[41,"NMX-J-521/1-ANCE-2012","“APARATOS ELECTRODOMÉSTICOS Y SIMILARES-SEGURIDAD-PARTE 1: REQUISITOS GENERALES”"]
[42,"NMX-J-524/1-ANCE-2013","“HERRAMIENTAS ELÉCTRICAS PORTÁTILES OPERADAS POR MOTOR-SEGURIDAD-PARTE 1: REQUISITOS GENERALES”"]
[43,"NMX-J-588-ANCE-2017","“PRODUCTOS DECORATIVOS DE TEMPORADA-SERIE DE LUCES, ADORNOS NAVIDEÑOS Y FIGURAS DECORATIVAS DE TEMPORADA DE USO DOMESTICO-REQUISITOS DE SEGURIDAD”"]
[44,"NMX-J-066-ANCE-2017","CONDUCTORES-DETERMINACION DEL DIAMETRO Y DEL AREA DE LA SECCION TRANSVERSAL DE CONDUCTORES ELECTRICOS-METODO DE PRUEBA"]
[45,"NMX-J-524/2-1-ANCE-2009","HERRAMIENTAS ELÉCTRICAS PORTÁTILES QUE SE ACCIONAN CON LA MANO DURANTE SU FUNCIONAMIENTO, OPERADAS POR MOTOR –SEGURIDAD- PARTE 2-1: REQUISITOS PARTICULARES PARA TALADROS, TALADROS DE IMPACTO, ROTOMARTILLOS Y TALADROS DE PERCUSIÓN"]
[46,"NMX-J-524/2-2-ANCE-2013","HERRAMIENTAS ELÉCTRICAS PORTÁTILES OPERADAS POR MOTOR-SEGURIDAD-PARTE 2-2: REQUISITOS PARTICULARES PARA DESTORNILLADORES Y LLAVES DE IMPACTO"]
[47,"NMX-J-524/2-3-ANCE-2018","HERRAMIENTAS ELÉCTRICAS PORTÁTILES OPERADAS POR MOTOR-SEGURIDAD-PARTE 2-3: REQUISITOS PARTICULARES PARA ESMERILADORAS, PULIDORAS Y LIJADORAS DE DISCO"]
[48,"NMX-J-524/2-4-ANCE-2013","HERRAMIENTAS ELÉCTRICAS PORTÁTILES OPERADAS POR MOTOR - SEGURIDAD - PARTE 2-4: REQUISITOS PARTICULARES PARA LIJADORAS Y PULIDORAS DIFERENTES A LAS DE TIPO DISCO"]
[49,"NMX-J-524/2-5-ANCE-2019","HERRAMIENTAS ELÉCTRICAS PORTÁTILES OPERADAS POR MOTOR –SEGURIDAD- PARTE 2-5: REQUISITOS PARTICULARES PARA SIERRAS CIRCULARES"]
["METAL-MECANICA"]
[50,"NOM-133/1-SCFI-1999","PRODUCTOS INFANTILES-FUNCIONAMIENTO DE ANDADREAS PARA LA SEGURIDAD DEL INFANTE-ESPECIFICACIONES Y METODOS DE PRUEBA"]
[51,"NOM-133/2-SCFI-1999","PRODUCTOS INFANTILES-FUNCIONAMIENTO DE CARRIOLAS PARA LA SEGURIDAD DEL INFANTE-ESPECIFICACIONES Y METODOS DE PRUEBA"]
[52,"NOM-133/3-SCFI-1999","PRODUCTOS INFANTILES-FUNCIONAMIENTO DE CORRALES Y ENCIERROS-ESPECIFICACIONES Y METODOS DE PRUEBA"]
[53,"NOM-205-SCFI-2017","PRODUCTOS INFANTILES-FUNCIONAMIENTO DE SILLAS ALTAS PARA LA SEGURIDAD DEL INFANTE-ESPECIFICACIONES Y METODOS DE PRUEBA"]

{"sheet":"Hoja1","index":5,"n_rows":35,"n_cols":7,"rows_kept":35,"cut":false,"hidden":true,"merged":[]}
[]
[]
[]
[null,"NORMAS","ELECTRONICA","ENERGETICA","ELECTRICA","FAM. NORMAS","METAL"]
[null,null,"NOM-016-SCFI-1993","NOM-029-ENER-2017","NMX-J-521/2-2-ANCE-2019","NOM-016-SCFI-1993","NOM-133/1-SCFI-1999"]
[null,null,"NOM-019-SCFI-1998","NOM-032-ENER-2013","NMX-J-521/2-3-ANCE-2013","NOM-019-SCFI-1998","NOM-133/2-SCFI-1999"]
[null,"ELECTRONICA","NOM-048-SCFI-1997","NOM-033-ENER-2019","NMX-J-521/2-4-ANCE-2006","NOM-048-SCFI-2007","NOM-133/3-SCFI-1999"]
[null,"ENERGETICA","NOM-058-SCFI-2017","CONSUMO ENERGETICO","NMX-J-521/2-5-ANCE-2009","NOM-058-SCFI-2017","NOM-205-SCFI-2017"]
[null,"ELECTRICA","NMX-I-60335-2-25-NYCE-2015","INFORME TECNICO NOM-016 y NOM-019","NMX-J-521/2-8-ANCE-2018","NOM-001-SCFI-2018"]
[null,"METAL","NMX-I-60065-NYCE-2015",null,"NMX-J-521-2-9-ANCE-2016","NOM-003-SCFI-2014"]
[null,"ACREDITADAS","NMX-I-60335-2-82-NYCE-2015",null,"NMX-J-521/2-13-ANCE-2010","NOM-029-ENER-2017"]
[null,null,"NMX-J-I-62115-ANCE-NYCE",null,"NMX-J-521/2-14-ANCE-2020","NOM-032-ENER-2013"]
[null,null,"NMX-I-163-NYCE-2016",null,"NMX-J-521/2-15-ANCE-2013","NOM-033-ENER-2019"]
[null,null,"NMX-I-60950-1-NYCE-2015",null,"NMX-J-521-2-23-ANCE-2016","NOM-133/1-SCFI-1999"]
[null,null,"NMX-I-60950-NYCE-2015",null,"NMX-J-521/2-28-ANCE-2011","NOM-133/2-SCFI-1999"]
[null,null,null,null,"NMX-J-521/2-30-ANCE-2009","NOM-133/3-SCFI-1999"]
[null,null,null,null,"NMX-J-521/2-31-ANCE-2018","NOM-205-SCFI-2017"]
[null,null,null,null,"NMX-J-521-2-32-ANCE-2017"]
[null,null,null,null,"NMX-J-521/2-45-ANCE-2008"]
[null,null,null,null,"NMX-J-521/2-52-ANCE-2010"]
[null,null,null,null,"NMX-J-521/2-54-ANCE-2005"]
[null,null,null,null,"NMX-J-521/2-75-ANCE-2018"]
[null,null,null,null,"NMX-J-521/2-80-ANCE-2014"]
[null,null,null,null,"NMX-J-I-62115-ANCE-NYCE-2020"]
[null,null,null,null,"NMX-J-024-ANCE-2018"]
[null,null,null,null,"NMX-J-307-ANCE-2017"]
[null,null,null,null,"NMX-J-508-ANCE-2018"]
[null,null,null,null,"NMX-J-521/1-ANCE-2012"]
[null,null,null,null,"NMX-J-524/1-ANCE-2013"]
[null,null,null,null,"NMX-J-588-ANCE-2017"]
[null,null,null,null,"NMX-J-524/2-1-ANCE-2009"]
[null,null,null,null,"NMX-J-524/2-2-ANCE-2013"]
[null,null,null,null,"NMX-J-524/2-3-ANCE-2018"]
[null,null,null,null,"NMX-J-524/2-4-ANCE-2013"]
[null,null,null,null,"NMX-J-524/2-5-ANCE-2019"]

{"sheet":"CONDICIONES DEL SERVICIO","index":6,"n_rows":1,"n_cols":1,"rows_kept":1,"cut":false,"hidden":false,"merged":[[0,0,1,9]]}
["NOTA. PARA REALIZAR EL DEBIDO LLENADO DE LAS CONDICIONES DE SERVICIO, DESCARGAR ARCHIVO DE LA PAGINA www.labteso.com CON NOMBRE CONDICIONES DE SERVICIO"]

{"sheet":"COTIZACION","index":7,"n_rows":33,"n_cols":6,"rows_kept":33,"cut":false,"hidden":true,"merged":[[10,1,10,5],[32,1,33,5]]}
[]
[null,null,null,null,"Fecha:",{"$f":"SOLICITUD!H3","v":"2023-05-25"}]
[null,"Jacinto Canek 15-A, Col. San Juan Ixhuatepec, C.P. 54180, Tlalnepantla, Edo. de México,",null,null,"N.º de cotización:",22005]
[null,"Teléfono: (55) 4426-1914, (55) 4426-4362, (55) 4426-1034 y (55) 4426-3060",null,null,"Id. del cliente:"]
[null,"Cotizacion para:"]
[null,{"$f":"SOLICITUD!D14","v":0},null,null,"Cotización válida hasta:",{"$f":"F2+30","v":"2023-06-24"}]
[null,{"$f":"SOLICITUD!D12","v":"Leonardo Salazar "},null,null,"Autor:","Ing. Roberto Soto"]
[null,{"$f":"SOLICITUD!D13","v":0}]
[null,"Número de teléfono","81 83626558"]
[null,"Comentarios o instrucciones especiales:"]
[null,"Equipo para pruebas"]
[null,"Cantidad","Descripción","Norma(s)","Precio por unidad","Importe"]
[null,3,{"$f":"SOLICITUD!C17","v":0},{"$f":"SOLICITUD!$G$17","v":0},7000,{"$f":"SaleItems_Table2[[#This Row],[Precio por unidad]]*SaleItems_Table2[[#This Row],[Cantidad]]","v":21000}]
[null,null,{"$f":"SOLICITUD!C19","v":0},{"$f":"SOLICITUD!G19","v":0},null,{"$f":"SaleItems_Table2[[#This Row],[Precio por unidad]]*SaleItems_Table2[[#This Row],[Cantidad]]","v":0}]
[null,null,{"$f":"SOLICITUD!C19","v":0},{"$f":"SOLICITUD!$G$19","v":0},null,{"$f":"SaleItems_Table2[[#This Row],[Precio por unidad]]*SaleItems_Table2[[#This Row],[Cantidad]]","v":0}]
[null,null,{"$f":"SOLICITUD!C21","v":0},{"$f":"SOLICITUD!G21","v":0},null,{"$f":"SaleItems_Table2[[#This Row],[Precio por unidad]]*SaleItems_Table2[[#This Row],[Cantidad]]","v":0}]
[null,null,{"$f":"SOLICITUD!C21","v":0},{"$f":"SOLICITUD!$G$21","v":0},null,{"$f":"SaleItems_Table2[[#This Row],[Precio por unidad]]*SaleItems_Table2[[#This Row],[Cantidad]]","v":0}]
[null,null,{"$f":"SOLICITUD!C23","v":0},{"$f":"SOLICITUD!G23","v":0},null,{"$f":"SaleItems_Table2[[#This Row],[Precio por unidad]]*SaleItems_Table2[[#This Row],[Cantidad]]","v":0}]
[null,null,{"$f":"SOLICITUD!C23","v":0},{"$f":"SOLICITUD!$G$23","v":0},null,{"$f":"SaleItems_Table2[[#This Row],[Precio por unidad]]*SaleItems_Table2[[#This Row],[Cantidad]]","v":0}]
[null,null,{"$f":"SOLICITUD!C25","v":0},{"$f":"SOLICITUD!$G$25","v":0},null,{"$f":"SaleItems_Table2[[#This Row],[Precio por unidad]]*SaleItems_Table2[[#This Row],[Cantidad]]","v":0}]
[null,null,{"$f":"SOLICITUD!C27","v":0},{"$f":"SOLICITUD!$G$27","v":0},null,{"$f":"SaleItems_Table2[[#This Row],[Precio por unidad]]*SaleItems_Table2[[#This Row],[Cantidad]]","v":0}]
[null,null,{"$f":"SOLICITUD!C29","v":0},{"$f":"SOLICITUD!$G$29","v":0},null,{"$f":"SaleItems_Table2[[#This Row],[Precio por unidad]]*SaleItems_Table2[[#This Row],[Cantidad]]","v":0}]
[null,null,{"$f":"SOLICITUD!C31","v":0},{"$f":"SOLICITUD!$G$31","v":0},null,{"$f":"SaleItems_Table2[[#This Row],[Precio por unidad]]*SaleItems_Table2[[#This Row],[Cantidad]]","v":0}]
[null,null,{"$f":"SOLICITUD!C33","v":0},{"$f":"SOLICITUD!$G$33","v":0},null,{"$f":"SaleItems_Table2[[#This Row],[Precio por unidad]]*SaleItems_Table2[[#This Row],[Cantidad]]","v":0}]
[]
[null,"Muestras requeridas","Tiempo de respuesta"]
[null,2,"25-30 dias naturales"]
[]
[null,"Si tiene alguna duda sobre esta cotizacion, póngase en contacto con: ",null,null,"Subtotal",{"$f":"SUM(SaleItems_Table2[Importe])","v":21000}]
[null,"Eduardo Lopez Garcia",null,null,"IVA. 16%",{"$f":"(0.16)*(F29)","v":3360}]
[null,"supervision.clientes@labteso.com",null,null,"Otros"]
[null,"Gracias por su confianza.",null,null,"TOTAL",{"$f":"SUM(F30+F29)","v":24360}]
[null,"Para ver el alcance completo de la acreditación del laboratorio, visitar el catálogo de acreditados en www.ema.org.mx"]